Cogmind - Beta 15 @@@ ROGUE MODE // 2025.08.18 @ 22:05:53 Player: MutatedPixel Result: Destroyed by as-25269 with Assembled Heavy Rifle Performance ------------- Evolutions (1) 500 Regions Visited (4) 800 Robots Destroyed (43) 215 Value Destroyed (1156) 1156 Prototype IDs (6) 120 Alien Tech Used (0) 0 Bonus (0) 0 TOTAL SCORE: 2791 Bonus ------- None Cogmind --------- Core Integrity 0/400 Matter 247/300 Energy 205/240 System Corruption 0% Temperature Cool (20) Movement Flying (232) Ox2 Location -9/Mines Parts ------- > --- POWER (1) -------- Nuclear Core > --- PROPULSION (4) --- Armored Treads Armored Treads VTOL Module VTOL Module > --- UTILITY (2) ------ Medium Storage Unit Core Shielding > --- WEAPON (2) ------- (None) > --- INVENTORY (10) --- Nuclear Core Armored Treads Armored Treads VTOL Module Light Armor Plating Heavy Assault Rifle Shotgun Shotgun Hammer Mace Peak State ------------ > --- POWER ------------ Nuclear Core > --- PROPULSION ------- Armored Treads Armored Treads Armored Treads Armored Treads > --- UTILITY ---------- Small Storage Unit Light Armor Plating > --- WEAPON ----------- Heavy Assault Rifle Heavy Assault Rifle > --- INVENTORY -------- Ion Engine Improved Ion Engine VTOL Module VTOL Module VTOL Module Shotgun Shotgun Hammer [Rating: 22] Favorites ----------- Power Light Ion Engine Engine Light Ion Engine Power Core Nuclear Core Propulsion Armored Treads Treads Armored Treads Leg Aluminum Leg Wheel Wheel Flight Unit Flight Unit Utility Light Armor Plating Device Terrain Scanner Storage Small Storage Unit Protection Light Armor Plating Weapon Heavy Assault Rifle Energy Gun Medium Laser Ballistic Gun Heavy Assault Rifle Launcher Grenade Launcher Impact Weapon Hammer Special Melee Weapon Datajack Build | -11 -10 -10 -9 -9 ------- Run | Yrd Mat Min Mat Min Slots Evolved 2 | . . . 2 . Power . | . . . . . Propulsion 2 | . . . 2 . Utility . | . . . . . Weapon . | . . . . . Parts Attached 55 | 8 1 8 36 2 Power 8 | 1 . 2 5 . Engine 6 | 1 . 2 3 . Core 2 | . . . 2 . Reactor . | . . . . . Propulsion 23 | 4 . 3 14 2 Treads 12 | 2 . . 10 . Leg 2 | . . . 2 . Wheel 4 | 2 . . 2 . Hover . | . . . . . Flight 5 | . . 3 . 2 Utility 9 | 1 1 . 7 . Device 1 | . 1 . . . Storage 3 | 1 . . 2 . Processor . | . . . . . Hackware . | . . . . . Protection 5 | . . . 5 . Artifact . | . . . . . Weapon 15 | 2 . 3 10 . Energy Gun 5 | 1 . 2 2 . Energy Cannon . | . . . . . Ballistic Gun 6 | 1 . . 5 . Ballistic Cannon . | . . . . . Launcher 1 | . . 1 . . Special Weapon . | . . . . . Impact Weapon 2 | . . . 2 . Slashing Weapon . | . . . . . Piercing Weapon . | . . . . . Special Melee Weapon 1 | . . . 1 . Unidentified Prototypes . | . . . . . Parts Lost 13 | . . 1 12 . Power 4 | . . 1 3 . Propulsion 5 | . . . 5 . Utility 1 | . . . 1 . Weapon 3 | . . . 3 . Highest Loss Streak 6 | . . 1 6 . To Critical Strikes . | . . . . . Average Backups 5 | 2 7 5 5 8 Power . | . . . . 1 Propulsion 1 | 1 2 2 1 3 Utility . | . . . . 1 Weapon 2 | 1 3 2 2 3 Tool/Special . | . . . . . Unused Backups 9 | . 1 3 4 1 Power 3 | . . . 3 . Propulsion 1 | . . . . 1 Utility 2 | . . 2 . . Weapon 3 | . 1 1 1 . Tool/Special . | . . . . . Average Slot Usage (%) 86 | . 87 76 88 100 Engine 6 | . 14 13 4 . Core 3 | . . . 5 11 Treads 26 | . . . 35 44 Wheel 5 | . 28 5 1 . Flight 5 | . . 22 3 . Storage 6 | . 14 3 6 11 Protection 7 | . . . 10 11 Energy Gun 5 | . 14 14 3 . Ballistic Gun 13 | . 14 12 13 11 Impact Weapon 2 | . . . 3 11 Peak Build Rating 22 | 6 7 8 22 22 Average Rating 12 | 3 6 5 15 20 On Entrance 7 | . 6 7 5 21 Naked Turns . | . . . . . Heaviest Build 27 | 11 12 14 27 23 Greatest Support 80 | 40 26 26 80 80 Greatest Overweight (x) 1 | . . . 1 . Average Overweight (x) . | . . . . . Largest Inventory Capacity 10 | 8 8 8 10 10 Average Capacity 7 | 5 8 5 7 10 Most Carried 10 | 5 8 8 9 10 Average Carried 5 | 2 7 5 5 8 Final Capacity 10 | 8 8 5 10 10 Final Carried 10 | 3 8 5 8 10 Class Distribution -------------------- 60% | Mutant 39% | Scavenger-Mutant Dominant Class ---------------- Mutant | -10/Materials Mutant | -10/Mines Scavenger-Mutant | -9/Materials Mutant | -9/Mines Resources | -11 -10 -10 -9 -9 ----------- Run | Yrd Mat Min Mat Min Matter Collected 1244 | 269 . 47 928 . Remotely . | . . . . . Salvage Created 1369 | . 74 47 1248 . Parts 101 | . 5 8 88 . Haulers Intercepted 1 | . . . 1 . Recyclers Shooed 1 | . . . 1 . Parts Field Recycled . | . . . . . Retrieved Matter . | . . . . . Parts Self-Destructed . | . . . . . Prevented . | . . . . . Kills | -11 -10 -10 -9 -9 ------- Run | Yrd Mat Min Mat Min Combat Hostiles Destroyed 30 | . . 3 27 . Melee 1 | . . . 1 . Guns 22 | . . 2 20 . AOE 6 | . . 1 5 . Classes Destroyed 12 | . 3 1 8 . Worker 3 | . 1 1 1 . Tunneler 1 | . . . 1 . Hauler 1 | . . . 1 . Recycler 1 | . . . 1 . Mechanic 1 | . . . 1 . Operator 2 | . 1 . 1 . Watcher 4 | . 1 . 3 . Swarmer 3 | . . 3 . . Grunt 19 | . . . 19 . Brawler 1 | . . . 1 . Duelist 1 | . . . 1 . Sentry 6 | . . . 6 . Best Kill Streak 5 | . 2 3 5 . Combat Bots Only 5 | . . 3 5 . Max Kills in Single Turn 3 | . 1 1 3 . Gunslinging . | . . . . . Exploded 3 | . . 1 3 . Melee 1 | . . . 1 . Uniques/NPCs Destroyed . | . . . . . Combat | -11 -10 -10 -9 -9 -------- Run | Yrd Mat Min Mat Min Hostile Shots Fired 267 | . 4 17 240 6 Missed 73 | . 1 4 67 1 Hits 194 | . 3 13 173 5 Melee 12 | . . . 11 1 Projectile 182 | . 3 13 162 4 Critical Strikes 14 | . . . 14 . Damage Taken 2670 | . 41 96 2432 101 Core 426 | . . 26 385 15 Absorbed by Shields . | . . . . . Redirected to Shielding 7 | . . . 4 3 Regen/Repaired (Parts) 22 | . . . 22 . Core Remaining (%) 94 | 100 . 89 . . Volleys Fired 124 | . 7 11 106 . Largest 2 | . 2 2 2 . Hottest 95 | . 60 95 95 . Shots Fired 190 | . 14 21 155 . Gun 186 | . 14 20 152 . Cannon . | . . . . . Launcher 4 | . . 1 3 . Special . | . . . . . Kinetic 139 | . 7 4 128 . Thermal 24 | . . 6 18 . Explosive 4 | . . 1 3 . Electromagnetic 23 | . 7 10 6 . Robot Hit Streak 12 | . 1 5 12 . Robot Miss Streak 9 | . 6 9 4 . Penetration Max . | . . . . . Secondary Targets 1 | . . 1 . . Max Gunslinging Chain 1 | . . 1 . . Shots Hit Robots 124 | . 3 9 112 . Core Hits 68 | . 3 5 60 . Critical Kills . | . . . . . Critical Parts Destroyed . | . . . . . Critical Strikes . | . . . . . Melee Attacks 13 | . . . 13 . Impact 11 | . . . 11 . Slashing . | . . . . . Piercing . | . . . . . Sneak Attacks 1 | . . . 1 . Combat Hostiles . | . . . . . Follow-up Attacks 1 | . . . 1 . Damage Inflicted 2214 | . 66 180 1968 . Guns 1632 | . 66 96 1470 . Cannons . | . . . . . Explosions 330 | . . 84 246 . Melee 252 | . . . 252 . Ramming . | . . . . . Kinetic 1316 | . . 27 1289 . Thermal 129 | . . . 129 . Explosive 288 | . . 84 204 . Electromagnetic 229 | . 66 69 94 . Impact 252 | . . . 252 . Slashing . | . . . . . Piercing . | . . . . . Highest Corruption . | . . . . . Average Corruption . | . . . . . Corruption Purged . | . . . . . Corruption Blocked . | . . . . . Overload Shots . | . . . . . Overflow Damage 95 | . . . 95 . Projectiles . | . . . . . Explosions 36 | . . . 36 . Melee 59 | . . . 59 . Knockbacks 2 | . . . 2 . Impact 2 | . . . 2 . Kinetic . | . . . . . Secondary . | . . . . . Self-Inflicted Damage 69 | . . . 69 . Shots 2 | . . . 2 . Rammed . | . . . . . Targets Rammed . | . . . . . Kicked . | . . . . . Crushed . | . . . . . Highest Temperature 163 | . 29 163 120 . Average Temperature 33 | . 16 71 25 . Received Heat Transfer 1085 | . 24 . 1041 20 Siege Activations . | . . . . . Martial Activations . | . . . . . Shielding Activations . | . . . . . Robots Disrupted . | . . . . . Combat Hostiles . | . . . . . Robots Corrupted 2 | . . . 2 . Combat Hostiles 1 | . . . 1 . Parts Fried 1 | . . . 1 . Impact Corruptions 3 | . . . 3 . Robots Melted . | . . . . . Combat Hostiles . | . . . . . Parts Melted 1 | . . . 1 . Heat Transferred 259 | . . . 259 . Parts Sabotaged . | . . . . . Parts Stolen . | . . . . . Parts Stripped . | . . . . . Power Chain Reactions 1 | . . . 1 . Alert | -11 -10 -10 -9 -9 ------- Run | Yrd Mat Min Mat Min Maximum Alert Level . | . . . . . Low Security (%) 100 | 100 100 100 100 100 Level 1 . | . . . . . Level 2 . | . . . . . Level 3 . | . . . . . Level 4 . | . . . . . Level 5 . | . . . . . High Security . | . . . . . Max Security . | . . . . . Peak Influence 181 | . 9 59 181 65 Initial 65 | . . . . 65 Average 52 | . 1 11 70 60 Influence Increases 976 | . 33 84 859 . Destroy 0b10 Robot/C 600 | . . 60 540 . Destroy 0b10 Robot/NC 65 | . 15 5 45 . Destroy Leader 170 | . 2 10 158 . Successful Hack 71 | . 16 . 55 . Destroy Structure 40 | . . 9 31 . Partial Spotted 15 | . . . 15 . Lose Combat Pursuer 15 | . . . 15 . Influence Decreases 921 | . 33 84 690 114 Entered New Map 104 | . . . . 104 Time Decay 692 | . 33 74 575 10 Lost Part 120 | . . 10 110 . Purge Threat 5 | . . . 5 . Squads Dispatched 8 | . 1 . 7 . Investigation 5 | . . . 5 . Extermination . | . . . . . Reinforcement 3 | . 1 . 2 . Assault . | . . . . . Garrison . | . . . . . Intercept . | . . . . . Searches Triggered . | . . . . . Construction Impeded . | . . . . . Haulers Reinforced . | . . . . . Active Scanning Responses . | . . . . . Cargo Convoy Interrupts . | . . . . . Stealth | -11 -10 -10 -9 -9 --------- Run | Yrd Mat Min Mat Min Distress Signals 2 | . 1 . 1 . Communications Jammed . | . . . . . Distress Signals . | . . . . . Times Spotted 71 | . 7 3 39 22 Peak Tracking Total 20 | . 4 3 6 20 Tactical Retreats 2 | . . . 1 1 Traps | -11 -10 -10 -9 -9 ------- Run | Yrd Mat Min Mat Min Traps Triggered . | . . . . . Indirectly . | . . . . . Trap Hack Attempts . | . . . . . Triggered . | . . . . . Disarmed . | . . . . . Reprogrammed . | . . . . . Reused . | . . . . . Traps Extracted . | . . . . . Installed . | . . . . . Triggered . | . . . . . Machines | -11 -10 -10 -9 -9 ---------- Run | Yrd Mat Min Mat Min Machines Disabled . | . . . . . Max in Single Turn . | . . . . . Machines Repaired . | . . . . . Machines Dismantled . | . . . . . Machines Sabotaged . | . . . . . Overloaded Fab Kills . | . . . . . Hacking | -11 -10 -10 -9 -9 --------- Run | Yrd Mat Min Mat Min Machines Accessed 14 | . 2 1 11 . Terminals 9 | . 2 . 7 . Fabricators . | . . . . . Repair Stations 1 | . . . 1 . Recycling Units 1 | . . . 1 . Scanalyzers 2 | . . . 2 . Garrison Access . | . . . . . Total Hacks 42 | . 7 1 34 . Successful 29 | . 6 1 22 . Failed 13 | . 1 . 12 . Catastrophic 2 | . . . 2 . Database Lockouts . | . . . . . Manual . | . . . . . Terminals 29 | . 7 . 22 . Fabricators . | . . . . . Repair Stations 3 | . . . 3 . Recycling Units 3 | . . . 3 . Scanalyzers 6 | . . . 6 . Garrison Access . | . . . . . Terminal Hacks 20 | . 6 1 13 . Record 4 | . 3 . 1 . Prototype ID Bank 3 | . 1 . 2 . Open Door 1 | . . 1 . . Branch Access Points 1 | . 1 . . . Emergency Access Points 1 | . 1 . . . Alert Level 3 | . . . 3 . Unreport Threat 1 | . . . 1 . Maintenance Status 1 | . . . 1 . Patrol Status 1 | . . . 1 . Recall Investigation 1 | . . . 1 . Hauler Manifests 1 | . . . 1 . Zone Layout 2 | . . . 2 . Fabricator Hacks . | . . . . . Repair Station Hacks 2 | . . . 2 . Scan Component 1 | . . . 1 . Repair 1 | . . . 1 . Recycling Unit Hacks 1 | . . . 1 . Retrieve Components 1 | . . . 1 . Scanalyzer 6 | . . . 6 . Insert Component 4 | . . . 4 . Analyze 2 | . . . 2 . Garrison Access Hacks . | . . . . . Unauthorized Hacks . | . . . . . Terminals . | . . . . . Fabricators . | . . . . . Repair Stations . | . . . . . Recycling Units . | . . . . . Scanalyzers . | . . . . . Garrison Access . | . . . . . Data Cores Recovered . | . . . . . Used . | . . . . . Hacking Detections 10 | . 2 . 8 . Full Trace Events 8 | . 2 . 6 . Feedback Events . | . . . . . Feedback Blocked . | . . . . . Robot Schematics Acquired . | . . . . . Robots Built . | . . . . . Authchips . | . . . . . Time . | . . . . . Total Robot Build Rating . | . . . . . Part Schematics Acquired 2 | . . . 2 . Parts Built . | . . . . . Authchips . | . . . . . Time . | . . . . . Total Part Build Rating . | . . . . . Parts Repaired 1 | . . . 1 . Time 38 | . . . 38 . Parts Recycled . | . . . . . Recycled Matter . | . . . . . Retrieved Matter . | . . . . . Retrieved Components 9 | . . . 9 . Parts Scanalyzed 2 | . . . 2 . Part Schematics Acquired 2 | . . . 2 . Parts Damaged . | . . . . . Bothacking | -11 -10 -10 -9 -9 ------------ Run | Yrd Mat Min Mat Min Used RIF Installer . | . . . . . Robots Hacked 1 | . . . 1 . Non-combat . | . . . . . Combat 1 | . . . 1 . Robot Hacks Applied 1 | . . . 1 . parse_system 1 | . . . 1 . Relay Couplers Released . | . . . . . Fabnet Peak Effective % . | . . . . . Robots Rewired . | . . . . . Allies Hacked . | . . . . . Hacks Repelled . | . . . . . Allies | -11 -10 -10 -9 -9 -------- Run | Yrd Mat Min Mat Min Total Allies 3 | . . 3 . . Largest Group 3 | . . 3 . . Highest-Rated Group 76 | . . 76 . . Highest-Rated Ally 31 | . . 31 . . Total Orders . | . . . . . Ally Attacks . | . . . . . Total Damage . | . . . . . Kills . | . . . . . Allies Corrupted . | . . . . . Allies Melted 1 | . . . . 1 Intel | -11 -10 -10 -9 -9 ------- Run | Yrd Mat Min Mat Min Active Infowar (turns) 112 | . 48 64 . . Terrain 112 | . 48 64 . . Robot Analysis Total . | . . . . . Derelict Logs Recovered 1 | . . 1 . . Drone Launches . | . . . . . Drone Recoveries . | . . . . . Exploration | -11 -10 -10 -9 -9 ------------- Run | Yrd Mat Min Mat Min Turns Passed 2647 | 80 304 354 1875 34 Spaces Moved 1836 | 57 149 708 905 17 Core 22 | 3 . . 19 . Treads 695 | 17 . . 661 17 Legs 18 | . . . 18 . Wheels 232 | 37 149 23 23 . Hover . | . . . . . Flight 869 | . . 685 184 . Fastest Speed 34 | 50 90 37 34 170 Average Speed 96 | 108 90 38 140 170 Slowest Speed 170 | 160 90 90 170 170 Overloaded Moves . | . . . . . Propulsion Burnouts . | . . . . . Robots Hopped 2 | . . 1 1 . Potential Cave-ins . | . . . . . Cave-ins Triggered . | . . . . . Exploration Rate (%) 40 | 3 34 99 56 11 Regions Visited 4 Branch Regions 2 Pre-discovered Areas . | . . . . . Known Exits Taken 1 | . 1 . . . Unknown Exits Taken 3 | 1 . 1 1 . Scrap Searched 1 | . . 1 . . Spaces Dug . | . . . . . Terrain Destroyed 38 | . . 9 29 . Melee . | . . . . . Projectile . | . . . . . AOE 38 | . . 9 29 . Terrain Rammed . | . . . . . Walls Destroyed . | . . . . . Machines Disabled . | . . . . . Actions | -11 -10 -10 -9 -9 --------- Run | Yrd Mat Min Mat Min Total 2526 | 73 306 769 1355 23 Wait 362 | . 143 18 201 . Move 1828 | 56 148 705 902 17 Hop 2 | . . 1 1 . Pick Up 72 | 9 6 9 48 . Fast Attach 1 | . 1 . . . Attach 45 | 6 . 3 35 1 Detach 11 | . . 1 7 3 Swap 29 | 2 . 8 17 2 Drop 41 | . 1 13 27 . Fire 124 | . 7 11 106 . Melee 11 | . . . 11 . Ram . | . . . . . Kick . | . . . . . Crush . | . . . . . Escape Stasis . | . . . . . Rewire . | . . . . . Trap . | . . . . . Miscellaneous . | . . . . . Route ------- -11/Scrapyard -10/Materials -10/Mines (discovered 3 exits: *Mat x2 / [*Exi]) -9/Materials (discovered 3 exits: [*Mat] / [*Min] / [Sto]) -9/Mines History --------- Turn | Location | Event 17 | -11/Scrapyard | Discovered new exit (range 15) 81 | -11/Scrapyard | Entered Materials 327 | -10/Materials | Build established: Mutant 340 | -10/Materials | Identified exit to Mines 385 | -10/Materials | Entered Mines 481 | -10/Mines | Deemed a non-threat by the Exiles lab entrance 481 | -10/Mines | Discovered new exit (range 5) 498 | -10/Mines | Found the Drone Emporium 498 | -10/Mines | Found Prototype Device 588 | -10/Mines | Discovered new exit (range 5) 660 | -10/Mines | Learned Materials terminal intel 662 | -10/Mines | Discovered new exit (range 7) 683 | -10/Mines | Received a Mining Laser from a helpful Derelict 739 | -10/Mines | Entered Materials 739 | -9/Materials | Evolved 2 slots: Propulsion x2 740 | -9/Materials | Loaded intel: 12 terminal locations 1135 | -9/Materials | Core integrity fell below 50% 1137 | -9/Materials | Lost 6 parts (1p3n2w) 1439 | -9/Materials | Build established: Scavenger-Mutant 1959 | -9/Materials | Discovered new exit (range 5) 2127 | -9/Materials | Repaired Nuclear Core 2167 | -9/Materials | Discovered new exit (range 16) 2257 | -9/Materials | Discovered new exit (range 13) 2295 | -9/Materials | Build established: Mutant 2379 | -9/Materials | Core integrity fell below 20% 2614 | -9/Materials | Entered Mines 2615 | -9/Mines | Assembled infested the area 2620 | -9/Mines | Assisted by a Guerilla fighting off Assembled 2648 | -9/Mines | Destroyed by as-25269 with Assembled Heavy Rifle Last Messages --------------- think you need a mining laser when you travel the depths." 02617_ DY-C3L(g): "They are crazy." 02618_ DY-C3L(g): "Everyone knows a good old rocket launcher goes a long way." 02618_ as-96220 suffers critical hit (Burn). 02618_ DY-C3L(g) destroyed. 02619_ YV-XR4(h): "I'll hold them off! Go on ahead or try to find another way!" 02619_ HV Slug penetrates as-96220. 02619_ as-96220 suffers critical hit (Destroy). 02619_ as-96220 destroyed. 02620_ A derelict emerges from the shadows: "You need to get out of here! I've been tracking a group of Assembled to figure out where they're coming from, and they're closing on this area, come on!" 02642_ U-05 Engineer destroyed. 02644_ as-59614 destroyed. 02647_ Knocked back. Map ----- +----------------------------------------------------+ | ???????????????????????????????????? | | ???????????????????????????????????? | | ???????????????????????????????????? | | ???????????????????????????????????? | | ???????????????????????????????????? | | ???????????????????????????????????? | | ???????????????????????????????????? | | ???????????????????????????????????? | | ???????????????????????????????????? | | ???????????????????????????????????? | | ????????????????????????? ???????? | | ????????????????????????? ??????? | | ????????????????????????? ??????? | | ????????????????????????? ???????? | | ????????????????????????? ???????? | | ????????????????????????? ???????? | | ????????????????????????? ???????? | | ????????????????????????# ???????? | | ????????????????????????# #? #????? | | ????????????????????????# # #????? | | ????????????????????????# # #????? | | ????????????????????????# # #????? | | ????????????????????????# # #????? | | ????????????????????????# # #????? | | ????????????????????????# # #????? | | ????????????????????????#@ # #????? | | ????????????????????????# # ##???? | | ???????????????????????##a #???? | | ??????????????????????## #???? | | ??????????????????????# a #???? | | ??????????????????????# ##???? | | ??????????????????????# a ##????? | | ??????????????????????## a ##????? | | ???????????????????????#### ##???? | | ??????????????????????????##aa ##??? | | ??????????????????????????## ##?? | | ?????????????????????????## % #?? | | ?????????????????????????# #?? | | ?????????????????????????# #?? | | ?????????????????????????## % #?? | | ??????????????????????????## #?? | | ???????????????????????????# #?? | | ??????????????????????????## #?? | | ??????????????????????????# [ #?? | | ??????????????????????????#=%% #?? | | ??????????????????????? %= ##?? | | ???????????????????? #??? | | ????????????????? ###" ##??? | | ?????????????????? ???######???? | | ?????????????????? ?????????????? | +----------------------------------------------------+ Best States ------------- Heat Dissipation 28 Energy Generation 14 Energy Capacity 265 Matter Stores 300 Matter Capacity 300 Sight Range 16 Terrain Scan Range 14 Terrain Scan Density 10 Armor Coverage 300 Core Shielding 20 Evasion (%) 62 Recoil Reduction 4 Item Schematics ----------------- Grenade Launcher | -9/Materials | Scanalyzed Lgt. Ion Engine | -9/Materials | Scanalyzed Robot Schematics ------------------ None Fabricated ------------ Nothing Repaired ---------- Nuclear Core | 70% | -9/Materials Alien Tech Used ----------------- None Achievements -------------- Hunted Challenges ------------ None Game ------ Seed AblativeHoverLauncher Manual? 0 Play Time 00:54:56 Cumulative 18.2 hours Start 2025.08.18 @ 21:08:36 End 2025.08.18 @ 22:05:53 Sessions 1 Manual Loads 0 Difficulty Rogue Special Mode None Game No. 6 Rogue 5 Adventurer 1 Explorer 0 Win Type - Total 0 Types 0/0/0/0/0/0/0/0/0/0 Lore% 6 Gallery% 11 Achievement% 16 Wizard Run 0 Options --------- Layout 1 ASCII 0 Keyboard 0 Movement Mouse Keybinds 0 Fullscreen 1 Font 32/SmallcapsGlow Map View 50x35 Zoom Use 0% Tactical HUD 1 Map Filters NONE Filters NONE Steam 1 RUN: a4e004b5-9861-4926-963f-ba4262e4de9e